{"text_format":"3","workbook":"xlsx","n_sheets":11,"sheets":["Bedienungsanleitung","PersönlicheEingaben_Pauschalen","Reisedaten","Fahrtkosten","Verpflegung","Verpflegung_Wechsel","Übernachtung","Reisenebenkosten","Reisekostenabrechnung","Sonderregelungen","Auslandsreisepauschalen"],"not_rendered":{"defined_names":12,"comments":1},"read":"whole","date_system":"1900"}

{"sheet":"Bedienungsanleitung","index":0,"n_rows":114,"n_cols":2,"rows_kept":114,"merged":[[3,1,3,8],[5,1,5,8],[6,1,6,8]]}
[]
[null,"Bedienungsanleitung "]
[]
[null,"Mit Hilfe dieses Tools können Sie eine Inlandsreise abrechnen."]
[]
[null,"Die Tabelle arbeitet mit folgenden Rubriken in jeweils eigenen Registern, damit alle Angaben detailliert und gleichzeitig "]
[null,"komfortabel erfasst werden können:"]
[]
[null,"§  Persönliche Eingaben und Pauschalen"]
[null,"§  Reisedaten"]
[null,"§  Fahrtkosten"]
[null,"§  Verpflegung"]
[null,"§  Übernachtung "]
[null,"§  Reisenebenkosten"]
[]
[null,"Die Eingabefelder erkennen Sie jeweils an einem hellgrauen Zellhintergrund. Die einzelen Rubriken erreichen Sie durch"]
[null,"einen Klick auf die zugehörige Registerlasche am unteren Bildschirmrand."]
[]
[null,"Persönliche Daten"]
[]
[null,"Erfassen Sie die persönlichen Daten, einmalig in der Tabelle PersönlicheEingaben_Pauschalen. Im Einzelnen handelt es sich um folgende Angaben:"]
[]
[null,"§  Name der Firma bzw. Organisation bei der Sie beschäftigt sind"]
[null,"§  Ihr Name und Vorname"]
[null,"§  Personal-Nr., Abteilung und Kostenstelle"]
[null,"§  Privatanschrift: Straße, Hausnummer, PLZ und Ort"]
[]
[null,"§  Bankverbindung "]
[]
[null,"Sollten Sie im Falle einer privaten Fahrzeugnutzung keinen PKW fahren, stellen Sie das gewünschte Fahrzeug über das Dropdownfeld ein."]
[]
[null,"Die Pauschale ist durch das Bundesreisekostengesetz festgelegt (§ 5 BRKG, Wegstreckenentschädigung). Sie beträgt für Pkw 0,30 EUR und für andere"]
[null,"motorbetriebene Fahrzeuge 0,20 EUR pro gefahrenem Kilometer. Wer einen Firmenwagen nutzt, erhält keine Kilometerpauschale."]
[]
[null,"Seit 2020 gibt es auch eine Pauschale für Berufskraftfahrer. Sie wird als Alternative bei einer Übernachtung in dem Kraftfahrzeug"]
[null,"des Arbeitgebers in Höhe von 8 EUR eingeführt. Wird diese Alternative anstelle der Abrechnung der tatsächlich entstandenen"]
[null,"Aufwendungen genutzt, ist das Kontrollkästchen Übernachtungspauschale für Berufskraftfahrer berücksichtigen abzuhaken."]
[]
[null,"Die Pauschale für Berufskraftfahrer ist an 3 Voraussetzungen geknüpft:"]
[null,"- Es muss sich erstens um eine berufliche Auswärtstätigkeit mit einem betrieblichen Fahrzeug handeln. "]
[null,"- Zweitens muss eine Übernachtung in dem betrieblichen Fahrzeug stattfinden."]
[null,"- Drittens muss es einen Tag betreffen, für den der Arbeitnehmer Anspruch auf eine Verpflegungspauschale von 14 EUR bzw. 28 EUR hat"]
[]
[null,"Reisedaten"]
[]
[null,"In der Tabelle Reisedaten erfassen Sie folgende Informationen zu Ihrer Reise:"]
[]
[null,"§  Reiseziel"]
[null,"§  Reisezweck"]
[null,"§  Reiseroute (hier besteht die Möglichkeit, bis zu vier Stationen zu erfassen)"]
[null,"§  Reisebeginn und -ende, jeweils mit Datum und Uhrzeit"]
[null,"§  bereits ausgezahlter Vorschuss"]
[]
[null,"Hinweis: Für den Fall, dass Sie eine Reise über Mitternacht ohne Übernachtung durchgeführt haben, haken Sie bitte das Kontrollkästchen "]
[null,"Mitternachtsregelung anwenden ab. Diese Angabe ist für eine korrekte Abrechnung Ihrer Reise zwingend notwendig."]
[]
[null,"Excel erkennt anhand Ihrer Angaben, ob es sich um eine ein- oder mehrtägige Reise handelt. Bei eintägigen Reisen ermittelt das Tool  "]
[null,"automatisch die Abwesenheitszeit in Stunden und Minuten. Sie finden die Informationen rechts neben Ihren Eingaben. Auf Basis dieser Berechnungen  "]
[null,"werden Ihre Verpflegungspauschalen – ebenfalls automatisch – ermittelt."]
[]
[null,"Fahrtkosten"]
[]
[null,"Fahrtkosten können sich aus mehreren Positionen zusammensetzen:"]
[]
[null,"§  Bahnfahrkarte/n"]
[null,"§  Kosten für das Nutzen von öffentlichen Verkehrsmitteln"]
[null,"§  Taxi"]
[null,"§  Flugticket/s"]
[null,"§  Kfz-Kosten"]
[null,"§  Sonstiges"]
[]
[null,"Das Tool ermöglicht bis zu 4 Angaben pro Position. Die einzelnen Werte werden automatisch zusammengerechnet."]
[]
[null,"Für den Fall, dass Sie ein eigenes Fahrzeug benutzt haben, greifen die Kilometerpauschalen. Auch hier haben Sie die Möglichkeit, 4 Routen"]
[null,"zu erfassen. Geben Sie für jede Route die gefahrenen Kilometer an. "]
[]
[null,"Die kompletten Fahrtkosten ermittelt das Tool.  Wer einen Firmenwagen fährt, erhält keine Fahrtkostenerstattung. "]
[]
[null,"Verpflegung"]
[]
[null,"Die Verpflegungspauschalen ermittelt das Tool automatisch anhand Ihrer Eingaben. Von Ihnen zu erfassen ist nur die"]
[null,"Anzahl der erhaltenen Mahlzeiten (also Frühstück, Mittag- und Abendessen). Auf Basis Ihrer Angaben wird die"]
[null,"Verpflegungspauschale wegen Arbeitnehmerverpflegung gekürzt. "]
[null,"An- und Abreisetag bitte gesondert angeben. "]
[]
[]
[null,"Übernachtung "]
[]
[null,"In der Tabelle Übernachtung werden folgende Eingaben verlangt:"]
[]
[null,"§ Übernachtungskosten laut Einzelnachweis: Angabe von Hotel, Anzahl der Übernachtungen sowie der zugehörige Betrag."]
[null,"    Entsprechend der Reiseroute sind hier 5 Angaben möglich."]
[]
[null,"§  Für den Fall, dass Übernachtungspauschalen zu berücksichtigen sind, machen Sie bitte im unteren Eingabebereich "]
[null,"    die entsprechenden Angaben."]
[]
[null,"Besonderheit bei Berufskraftfahrern"]
[null,"§ Findet eine Übernachtung im Fahrzeug (Schlafkoje usw.) statt, dürfen die ​Übernachtungspauschalen nicht angewendet werden."]
[]
[null,"Reisenebenkosten"]
[]
[null,"Diese Tabelle ist im Prinzip selbsterklärend und erwartet eine Aufstellung der Nebenkosten einschließlich Beleg-Datum,"]
[null,"Beleg-Nr. und Betrag."]
[]
[]
[null,"Reisekostenabrechnung"]
[]
[null,"In der Reisekostenabrechnung laufen alle Informationen zusammen und können ausgedruckt werden."]
[null,"In dieser Tabelle sind keine Eingaben erforderlich."]
[]
[]
[null,"Das Tool ermöglicht zahlreiche Sonderfälle, sodass Sie es in der Regel problemlos in der Praxis einsetzen können. Allerdings ist das deutsche "]
[null,"Reisekostenrecht sehr komplex. Es kann daher in Ausnahmefällen vorkommen, dass Reisen mit Hilfe des Tools nicht abgerechnet werden"]
[null,"können."]

{"sheet":"PersönlicheEingaben_Pauschalen","index":1,"n_rows":130,"n_cols":17,"rows_kept":130,"merged":[[5,2,5,11],[7,2,7,11],[9,2,9,11],[11,2,11,11],[13,2,13,11],[15,2,15,11],[17,2,17,11],[19,2,19,11],[21,2,21,11],[24,2,24,10],[28,2,28,11]]}
[]
[null,"Reisekostenabrechnung Inlandsreisen"]
[]
[null,"Persönliche Eingaben und Pauschalen"]
[]
[null,"Firma, Organisation"]
[]
[null,"Name, Vorname"]
[]
[null,"Personal-Nr."]
[]
[null,"Abteilung"]
[]
[null,"Kostenstelle"]
[null,"Privatanschrift Reisender"]
[null,"Straße, Hausnummer"]
[]
[null,"PLZ, Ort"]
[null,"Bankverbindung Reisender"]
[null,"IBAN"]
[]
[null,"BIC"]
[]
[null,"Sonstige Angaben"]
[null,"Kilometerpauschale pro km",{"$nulls":9},{"$f":"IF($Q$26=1,0.3,IF($Q$26=2,0.2,IF($Q$26=3,0.2,0)))","v":{"v":0.3,"d":"0.30 €"}}]
[{"$nulls":11},false,{"$nulls":4},1]
[null,"Kilometerpauschale Mitfahrer",{"$nulls":9},{"$f":"IF($Q$26=1,0.02,IF($Q$26=2,0.01,IF($Q$26=3,0,0)))","v":{"v":0.02,"d":"0.02 €"}},null,null,"End Sub"]
[]
[null,"Übernachtungspauschale"]
{"$rows_empty":96}
[null,"eigener PKW",0.3]
[null,"Motorrad/Motorroller",0.13]
[null,"Moped/Mofa",0.8]
[null,"Firmenfahrzeug",0.5]
[null,"Fahrrad"]

{"sheet":"Reisedaten","index":2,"n_rows":2030,"n_cols":21,"rows_kept":2030,"merged":[[5,2,5,11],[6,2,6,10],[7,2,7,11],[9,2,9,11],[11,2,11,11],[13,2,13,11],[15,2,15,11],[17,2,17,11],[19,2,19,11],[23,2,23,11],[25,2,25,11],[27,2,27,11],[29,2,29,11],[31,2,31,11],[1001,2,1001,11],[1003,2,1003,11],[1005,2,1005,11],[1007,2,1007,11]]}
[]
[null,"Reisekostenabrechnung - Inland"]
[]
[null,"Angaben zur Reise"]
[]
[{"$nulls":12},1]
[null,null,{"$f":"IF(D39=0,\"Bitte konkretesieren Sie das Reiseziel!\",\"\")","v":""},{"$nulls":9},{"$f":"VLOOKUP($M$6+1,Auslandsreisepauschalen!$A$7:$G$241,4)","v":28},{"$f":"VLOOKUP($M$6+1,Auslandsreisepauschalen!$A$7:$G$241,5)","v":14}]
[null,"Reiseziel / Stadt",{"$nulls":11},"Reisedauer in Tagen",{"$f":"IF(O33=TRUE,1,(C28-C24+1))","v":1}]
[]
[null,"Reisezweck",{"$nulls":11},"Reisedauer bei eintägigen Reisen",{"$f":"IF(O8>1,0,IF(O33=TRUE,O12,+C30-C26))","v":0}]
[]
[null,"Reiseroute",{"$nulls":11},"Reisedauer bei eintägigen Reisen über 0:00 ohne Übernachtung",{"$f":"IF(O33=TRUE,+N16-C26+C30,\"\")","v":""}]
[]
[]
[]
[{"$nulls":13},1]
[]
[]
[]
[]
[]
[null,"Reisebeginn und -ende",{"$nulls":12},{"$f":"IF(N23=TRUE,1,2)","v":2}]
[{"$nulls":13},false]
[null,"Reisebeginn, Datum"]
[]
[null,"Reisebeginn, Uhrzeit"]
[]
[null,"Reiseende, Datum"]
[]
[null,"Reiseende, Uhrzeit"]
[null,"Angaben zur Mitternachtsregelung"]
[null,"Bereits ausgezahlter Vorschuss"]
[{"$nulls":14},false]
[{"$nulls":13},{"$f":"IF(AND(O33=TRUE,C28-C24+1>2),\"Bitte prüfen Sie Ihre Eingaben! Sie haben Daten für eine mehrtägige Reise angegeben, aber das Kontrollkästchen für eine eintägige Reise abgehakt.\",\"\")","v":""}]
[]
[]
[]
[]
[null,{"$f":"VLOOKUP(Reisedaten!$M$6+1,Auslandsreisepauschalen!$A$6:$G$251,4)","v":28},null,{"$f":"B39","v":28}]
[null,{"$f":"VLOOKUP(Reisedaten!$M$6+1,Auslandsreisepauschalen!$A$6:$G$241,5)","v":14},null,{"$f":"B40","v":14}]
[null,{"$f":"VLOOKUP(Reisedaten!$M$6+1,Auslandsreisepauschalen!$A$8:$G$241,7)","v":20},null,{"$f":"B41","v":20}]
[null,{"$f":"VLOOKUP(Reisedaten!$M$6+1,Auslandsreisepauschalen!$A$6:$G$251,2)","v":"Deutschland"}]
{"$rows_empty":956}
[{"$nulls":3},"Daten automatisch kopieren und drucken"]
[null,"Reisedaten bei wechselnder Route"]
[]
[null,"Reisebeginn, Datum","2014-02-01"]
[]
[null,"Reisebeginn, Uhrzeit","09:00:00"]
[]
[null,"Reiseende, Datum","2014-02-10"]
[]
[null,"Reiseende, Uhrheit","13:00:00"]
[]
[null,"Anzahl Tage",{"$f":"O8","v":1}]
[{"$nulls":4},"Kürzung Pauschale"]
[null,"Anreisetag",null,null,"Frühstück",null,"Mittag",null,"Abend",{"$nulls":4},"Pauschale",null,"Kürzung"]
[null,"Anzahl Tage",3,"Vorsicht!",3,null,0,null,3,{"$nulls":3},2,{"$f":"(C1013-1)*T1013+U1013*1","v":{"v":70,"d":"70.00 €"}},null,{"$f":"IF(0.2*E1013*T1013+G1013*0.4*T1013+0.4+I1013*0.4*T1013>N1013,0,0.2*E1013*T1013+G1013*0.4*T1013+0.4+I1013*0.4*T1013)","v":50.80000000000001},null,{"$f":"VLOOKUP(Reisedaten!$M1013,Auslandsreisepauschalen!$A$6:$G$244,2)","v":"Deutschland"},null,{"$f":"VLOOKUP(Reisedaten!$M1013,Auslandsreisepauschalen!$A$8:$G$241,4)","v":28},{"$f":"VLOOKUP(Reisedaten!$M1013,Auslandsreisepauschalen!$A$8:$G$241,5)","v":14}]
[{"$nulls":15},{"$f":"IF(0.2*E1014*T1014+G1014*0.4*T1014+0.4+I1014*0.4*T1014>N1014,0,0.2*E1014*T1014+G1014*0.4*T1014+0.4+I1014*0.4*T1014)","v":0}]
[null,"Anzahl Tage",3,null,2,null,3,null,3,{"$nulls":3},17,{"$f":"IF(N1017>0,C1015*T1015,T1015*(C1015-1)+U1015)","v":{"v":135,"d":"135.00 €"}},null,126.4,null,{"$f":"VLOOKUP(Reisedaten!$M1015,Auslandsreisepauschalen!$A$8:$G$241,2)","v":"Bahrain"},null,{"$f":"VLOOKUP(Reisedaten!$M1015,Auslandsreisepauschalen!$A$8:$G$241,4)","v":45},{"$f":"VLOOKUP(Reisedaten!$M1015,Auslandsreisepauschalen!$A$8:$G$241,5)","v":30}]
[{"$nulls":15},0]
[null,"Anzahl Tage",3,{"$nulls":3},3,null,3,{"$nulls":3},5,{"$f":"IF(C1017>0,IF(N1019>0,C1017*T1017,T1017*(C1017-1)+U1017),0)","v":{"v":117,"d":"117.00 €"}},null,94,null,{"$f":"VLOOKUP(Reisedaten!$M1017,Auslandsreisepauschalen!$A$6:$G$244,2)","v":"Äthiopien"},null,{"$f":"VLOOKUP(Reisedaten!$M1017,Auslandsreisepauschalen!$A$6:$G$244,4)","v":39},{"$f":"VLOOKUP(Reisedaten!$M1017,Auslandsreisepauschalen!$A$6:$G$244,5)","v":26}]
[{"$nulls":15},0]
[null,"Anzahl Tage",1,null,3,null,3,null,3,{"$nulls":3},6,{"$f":"IF(C1019>0,IF(N1021>0,C1019*T1019,T1019*(C1019-1)+U1019),0)","v":{"v":24,"d":"24.00 €"}},null,0,null,{"$f":"VLOOKUP(Reisedaten!$M1019,Auslandsreisepauschalen!$A$6:$G$244,2)","v":"Äquatorialguinea"},null,{"$f":"VLOOKUP(Reisedaten!$M1019,Auslandsreisepauschalen!$A$6:$G$244,4)","v":36},{"$f":"VLOOKUP(Reisedaten!$M1019,Auslandsreisepauschalen!$A$6:$G$244,5)","v":24}]
[{"$nulls":15},0]
[null,"Anzahl Tage",null,null,3,null,3,null,3,{"$nulls":3},1,{"$f":"IF(C1021>0,T1021*(C1021-1)+U1021,0)","v":0},null,0,null,{"$f":"VLOOKUP(Reisedaten!$M1021,Auslandsreisepauschalen!$A$6:$G$244,2)","v":" "},null,{"$f":"VLOOKUP(Reisedaten!$M1021,Auslandsreisepauschalen!$A$6:$G$244,4)","v":0},{"$f":"VLOOKUP(Reisedaten!$M1021,Auslandsreisepauschalen!$A$6:$G$244,5)","v":0}]
[null,"Abreisetag"]
[null,null,{"$f":"SUM(C1013:C1021)","v":10},{"$nulls":10},{"$f":"SUM(N1013:N1021)","v":{"v":346,"d":"346.00 €"}},null,{"$f":"SUM(P1013:P1021)","v":{"v":271.20000000000005,"d":"271.20 €"}}]
[null,null,{"$f":"IF(C1010=C1023,\" \",\"Die Anzahl der Tage ist nicht korrekt!\")","v":"Die Anzahl der Tage ist nicht korrekt!"},null,"Kürzung Pauschale zwischen Anreise und Abreisetag unterscheiden?"]
{"$rows_empty":1005}
[null,"Reisen mit wechselndem Einsatzort"]

{"sheet":"Fahrtkosten","index":3,"n_rows":48,"n_cols":12,"rows_kept":48,"merged":[[13,1,13,3],[24,9,24,11],[25,9,25,11],[26,9,26,11],[34,9,34,11],[37,1,37,5],[37,9,37,11],[38,1,38,5],[38,9,38,11],[39,1,39,5],[39,9,39,11],[40,1,40,5],[40,9,40,11],[41,1,41,5],[41,9,41,11],[43,9,43,11]]}
[]
[null,"Reisekostenabrechnung - Inland"]
[]
[null,"Fahrtkosten"]
[]
[null,"Reiseroute"]
[]
[null,{"$f":"Reisedaten!$C$12","v":0}]
[null,{"$f":"Reisedaten!$C$14","v":0}]
[null,{"$f":"Reisedaten!$C$16","v":0}]
[null,{"$f":"Reisedaten!$C$18","v":0}]
[null,{"$f":"Reisedaten!$C$20","v":0}]
[]
[null,"Fahrtkosten laut Einzelnachweis"]
[null,"Bahnfahrkarte/n",null,"Nahverkehr",null,"Taxi",null,"Flugticket/s",null,"Kfz-Kosten",null,"Sonstiges"]
{"$rows_empty":9}
[{"$nulls":9},"Zusammenfassung"]
[null,"Fahrtkosten laut Einzelnachweis - Gesamtkosten gem. oben erfasster Eingaben"]
[null,"Bahnfahrkarte/n",{"$nulls":7},{"$f":"SUM(B16:B21)","v":0}]
[null,"Nahverkehr",{"$nulls":9},{"$f":"SUM(D16:D21)","v":0}]
[null,"Taxi",{"$nulls":9},{"$f":"SUM(F16:F21)","v":0}]
[null,"Flugticket/s",{"$nulls":9},{"$f":"SUM(H16:H21)","v":0}]
[null,"Kfz-Kosten",{"$nulls":9},{"$f":"SUM(J16:J21)","v":0}]
[null,"Sonstiges",{"$nulls":9},{"$f":"SUM(L16:L21)","v":0}]
[]
[null,"Gesamt",{"$nulls":9},{"$f":"SUM(J27:L32)","v":0}]
[null,"Fahrtkostenpauschale",{"$nulls":5},{"$f":"PersönlicheEingaben_Pauschalen!L25","v":{"v":0.3,"d":"0.30 €"}}]
[]
[null,"Strecke/Route",{"$nulls":5},"Gefahrene Kilometer"]
[null,{"$f":"Reisedaten!C12","v":0},{"$nulls":7},{"$f":"H38*$H$35","v":{"v":0,"d":"0.00 €"}}]
[null,{"$f":"Reisedaten!C14","v":0},{"$nulls":7},{"$f":"H39*$H$35","v":{"v":0,"d":"0.00 €"}}]
[null,{"$f":"Reisedaten!C16","v":0},{"$nulls":7},{"$f":"H40*$H$35","v":{"v":0,"d":"0.00 €"}}]
[null,{"$f":"Reisedaten!C18","v":0},{"$nulls":7},{"$f":"H41*$H$35","v":{"v":0,"d":"0.00 €"}}]
[null,{"$f":"Reisedaten!C20","v":0},{"$nulls":7},{"$f":"H42*$H$35","v":{"v":0,"d":"0.00 €"}}]
[]
[null,"Anzahl Mitfahrer",{"$nulls":7},{"$f":"H44*D44*PersönlicheEingaben_Pauschalen!L27","v":{"v":0,"d":"0.00 €"}}]
[]
[null,"Fahrtkosten für privat genutzte Fahrzeuge, gesamt",{"$nulls":9},{"$f":"SUM(J38:L44)","v":{"v":0,"d":"0.00 €"}}]
[]
[null,"Fahrtkosten gesamt",{"$nulls":9},{"$f":"+L34+L46","v":0}]

{"sheet":"Verpflegung","index":4,"n_rows":31,"n_cols":12,"rows_kept":31,"merged":[[5,1,5,4],[5,5,5,8],[15,1,15,8]]}
[]
[null,"Reisekostenabrechnung - Inland"]
[]
[null,"Verpflegung"]
[]
[null,"Pauschalbeträge für Verpflegungsmehraufwand",{"$nulls":3},"Pauschalbetrag je Tag"]
[]
[null,"Abwesenheit von mehr als 8 Stunden",{"$nulls":3},{"$f":"Reisedaten!M6","v":1},null,{"$f":"Reisedaten!N7","v":{"v":14,"d":"14.00 €"}}]
[]
[null,"Abwesenheit von 24 Stunden",null,0.9993055555555556,{"$f":"IF(D12>D10,2,0)","v":0},{"$f":"Reisedaten!M6","v":1},null,{"$f":"Reisedaten!M7","v":{"v":28,"d":"28.00 €"}}]
[{"$nulls":3},"08:01:00",{"$f":"D11","v":{"v":0.3340277777777778,"d":"0.33"}}]
[null,"Errechnete Reisedauer, bei eintägigen Reisen in Stunden",null,{"$f":"Reisedaten!O10","v":0},{"$f":"D12","v":{"v":0,"d":"0.00"}},{"$f":"IF(OR(E12>E11,E12=E11),1,0)","v":0},{"$nulls":3},{"$f":"IF(E10=2,28,F12*H8)","v":{"v":0,"d":"0.00 €"}},{"$f":"IF(AND($D$12<0.33,D18>0),TEXT($K$16,\"0,00\")&\" € Sachbezugswert\",\"\")","v":""},{"$f":"Reisedaten!U26","v":"00:00:00"}]
[{"$nulls":11},{"$f":"IF(ISERROR(L12)=\"FALSCH\",0,L12)","v":0}]
[null,"Errechnete Reisedauer, bei mehrtägigen Reisen in Tagen",null,{"$f":"IF(Reisedaten!O8=1,0,Reisedaten!O8)","v":0},{"$nulls":5},{"$f":"IF(D14=0,0,2*H8+H10*(D14-2))","v":{"v":0,"d":"0.00 €"}}]
[]
[null,"Kürzung Verpflegungspauschale aufgrund Arbeitnehmerbewirtung",{"$nulls":8},{"$f":"D19*1.7+D20*3.17+D21*3.17","v":0}]
[]
[null,"Kürzung Anreisetag / eintägige Reisen",null,{"$f":"SUM(D19:D21)","v":0},null,"Gesamt"]
[null,"Frühstück                       ",null,null,"je",{"$f":"0.2*$H$10","v":{"v":5.6000000000000005,"d":"5.60 €"}},null,{"$f":"+F19*D19","v":{"v":0,"d":"0.00 €"}},null,null,{"$f":"IF(D14>1,\"\",IF(AND($D$12<0.33,$D$18>0),\"Ohne Anspruch auf Verpflegungsmehraufwand muss der geldwerte Vorteil der Mahlzeit lohnversteuert werden!\",\"\"))","v":""}]
[null,"Mittagessen                     ",1,null,"je",{"$f":"$H$10*0.4","v":{"v":11.200000000000001,"d":"11.20 €"}},null,{"$f":"+F20*D20","v":{"v":0,"d":"0.00 €"}}]
[null,"Abendessen ",null,null,"je",{"$f":"$H$10*0.4","v":{"v":11.200000000000001,"d":"11.20 €"}},null,{"$f":"+F21*D21","v":{"v":0,"d":"0.00 €"}},null,{"$f":"IF(D14>1,H22*(-1),IF(J12=0,0,H22*(-1)))","v":{"v":0,"d":"0.00 €"}}]
[null,"Kürzung Zwischentage  / Abwesenheitstage mit mindestens 24 Stunden",{"$nulls":5},{"$f":"IF(SUM(H19:H21)>H8,H8,SUM(H19:H21))","v":{"v":0,"d":"0.00"}}]
[null,"Frühstück                       ",null,null,"je",{"$f":"0.2*$H$10","v":{"v":5.6000000000000005,"d":"5.60 €"}},null,{"$f":"+F23*D23","v":{"v":0,"d":"0.00 €"}}]
[null,"Mittagessen                     ",null,null,"je",{"$f":"$H$10*0.4","v":{"v":11.200000000000001,"d":"11.20 €"}},null,{"$f":"+F24*D24","v":{"v":0,"d":"0.00 €"}}]
[null,"Abendessen ",null,null,"je",{"$f":"$H$10*0.4","v":{"v":11.200000000000001,"d":"11.20 €"}},null,{"$f":"+F25*D25","v":{"v":0,"d":"0.00 €"}},null,{"$f":"IF(AND(Reisedaten!O33=TRUE,H26>24),(-24),H26*(-1))","v":{"v":0,"d":"0.00 €"}}]
[null,"Kürzung Abreisetag",{"$nulls":5},{"$f":"SUM(H23:H25)","v":{"v":0,"d":"0.00 €"}}]
[null,"Frühstück                       ",null,null,"je",{"$f":"0.2*$H$10","v":{"v":5.6000000000000005,"d":"5.60 €"}},null,{"$f":"+F27*D27","v":{"v":0,"d":"0.00 €"}}]
[null,"Mittagessen                     ",null,null,"je",{"$f":"$H$10*0.4","v":{"v":11.200000000000001,"d":"11.20 €"}},null,{"$f":"+F28*D28","v":{"v":0,"d":"0.00 €"}}]
[null,"Abendessen ",null,null,"je",{"$f":"$H$10*0.4","v":{"v":11.200000000000001,"d":"11.20 €"}},null,{"$f":"+F29*D29","v":{"v":0,"d":"0.00 €"}},null,{"$f":"H30*(-1)","v":{"v":0,"d":"0.00 €"}}]
[{"$nulls":7},{"$f":"IF(SUM(H27:H29)>H8,H8,SUM(H27:H29))","v":{"v":0,"d":"0.00"}}]
[null,"Gesamt",{"$nulls":7},{"$f":"IF(SUM(J6:J30)<0,0,SUM(J6:J30))","v":{"v":0,"d":"0.00 €"}}]

{"sheet":"Verpflegung_Wechsel","index":5,"n_rows":996,"n_cols":18,"rows_kept":996,"hidden":true,"merged":[[5,1,5,6],[5,7,5,10]]}
[]
[null,"Reisekostenabrechnung - Inland"]
[]
[null,"Verpflegung"]
[]
[null,"Pauschalbeträge für Verpflegungsmehraufwand"]
[]
[{"$nulls":5},"08:01:00",{"$f":"F8","v":{"v":0.3340277777777778,"d":"0.33"}}]
[null,"Errechnete Reisedauer, bei eintägiger Reise in Stunden",{"$nulls":3},{"$f":"Reisedaten!O10","v":0},{"$f":"F9","v":{"v":0,"d":"0.00"}},{"$f":"IF(OR(G9>G8,G9=G8),1,0)","v":0},{"$nulls":5},{"$f":"Reisedaten!U26","v":"00:00:00"}]
[{"$nulls":13},{"$f":"IF(ISERROR(N9)=\"FALSCH\",0,N9)","v":0}]
[null," Reisedauer bei mehrtägigen Reisen in Tagen",{"$f":"IF(Reisedaten!$O$8=1,0,Reisedaten!$O$8)","v":0},null,null,{"$f":"IF(Reisedaten!$O$8=1,0,Reisedaten!$O$8)","v":0}]
[]
[]
[]
[]
[]
[]
[{"$nulls":7},"                Kürzung Pauschale"]
[null,"Bereiste Länder und Orte"]
[{"$nulls":6},"Frühstück",null,"Mittagessen",null,"Abendessen",{"$nulls":4},"Pauschale",null,"Kürzung"]
[null,"Anreisetag",null,null,1,{"$nulls":10},{"$f":"G41","v":0},null,{"$f":"IF(P21<G21*E41*0.2+I21*E41*0.4+K21*E41*0.4,P21,G21*E41*0.2+I21*E41*0.4+K21*E41*0.4)","v":0}]
[]
[2,null,"Anzahl Tage",{"$nulls":11},2,{"$f":"IF(D23=0,0,(D23-1)*E41+G41)","v":0},null,{"$f":"+G23*E41*0.2+I23*E41*0.4+K23*E41*0.4","v":0}]
[null,{"$f":"IF(E41=0,\"Bitte konkretesieren Sie Ihre Angabe!\",\"\")","v":"Bitte konkretesieren Sie Ihre Angabe!"},{"$nulls":15},{"$f":"IF(0.2*G24*E42+I24*0.4*E42+0.4+K24*0.4*E42>P24,0,0.2*G24*E42+I24*0.4*E42+0.4+K24*0.4*E42)","v":0}]
[1,null,"Anzahl Tage ohne\nAn- und Abreise",{"$nulls":11},17,{"$f":"IF(D25=0,0,IF(P27>0,D25*E43,E43*D25))","v":0},null,{"$f":"+G25*E43*0.2+I25*E43*0.4+K25*E43*0.4","v":0}]
[null,{"$f":"IF(E43=0,\"Bitte konkretisieren Sie Ihre Angabe!\",\"\")","v":"Bitte konkretisieren Sie Ihre Angabe!"},{"$nulls":15},{"$f":"IF(0.2*G26*E44+I26*0.4*E44+0.4+K26*0.4*E44>P26,0,0.2*G26*E44+I26*0.4*E44+0.4+K26*0.4*E44)","v":0}]
[1,null,"Anzahl Tage ohne\nAn- und Abreise",{"$nulls":12},{"$f":"IF(D27>0,IF(D29>0,D27*E45,E45*D27),0)","v":0},null,{"$f":"+G27*E45*0.2+I27*E45*0.4+K27*E45*0.4","v":0}]
[null,{"$f":"IF(A27=1,\"\",IF(E45=0,\"Bitte konkretesieren Sie Ihre Angabe!\",\"\"))","v":""},{"$nulls":15},{"$f":"IF(0.2*G28*E46+I28*0.4*E46+0.4+K28*0.4*E46>P28,0,0.2*G28*E46+I28*0.4*E46+0.4+K28*0.4*E46)","v":0}]
[1,null,"Anzahl Tage ohne\nAn- und Abreise",{"$nulls":11},6,{"$f":"IF(D29>0,IF(D31>0,D29*E47,E47*(D29-1)+G47),0)","v":0},null,{"$f":"+G29*E47*0.2+I29*E47*0.4+K29*E47*0.4","v":0}]
[null,{"$f":"IF(A29=1,\"\",IF(E47=0,\"Bitte konkretesieren Sie Ihre Angabe!\",\"\"))","v":""},{"$nulls":15},{"$f":"IF(0.2*G30*E48+I30*0.4*E48+0.4+K30*0.4*E48>P30,0,0.2*G30*E48+I30*0.4*E48+0.4+K30*0.4*E48)","v":0}]
[1,null,"Anzahl Tage ohne\nAn- und Abreise",{"$nulls":11},1,{"$f":"IF(D31>0,E49*(D31-1)+G49,0)","v":0},null,{"$f":"+G31*E49*0.2+I31*E49*0.4+K31*E49*0.4","v":0}]
[null,{"$f":"IF(A31=1,\"\",IF(E49=0,\"Bitte konkretesieren Sie Ihre Angabe!\",\"\"))","v":""}]
[null,"Abreisetag",null,{"$f":"SUM(D23:D31)","v":0},231,{"$nulls":8},"Pauschale Abreisetag",{"$nulls":3},{"$f":"+G33*E51*0.2+I33*E51*0.4+K33*E51*0.4","v":0}]
[null,null,{"$f":"IF(C11=0,\"\",IF($F$11=$D$33+2,\" \",\"Die Anzahl der Tage ist nicht korrekt!\"))","v":""},{"$nulls":3},{"$f":"+G21+G25+G27+G29+G31+G33","v":0},null,{"$f":"SUM(I21:I33)","v":0},null,{"$f":"SUM(K21:K33)","v":0}]
[{"$nulls":6},{"$f":"IF(OR($F$11>G34,$F$11=G34),\" \",\"Frühstück prüfen!\")","v":" "},null,{"$f":"IF(OR($F$11>I34,$F$11=I34),\" \",\"Mittagessen prüfen!\")","v":" "},null,{"$f":"IF(OR($F$11>K34,$F$11=K34),\" \",\"Abendessen prüfen!\")","v":" "},{"$nulls":3},"Gesamt",{"$f":"SUM(P23:P31)","v":0},null,{"$f":"SUM(R23:R31)","v":0}]
[]
[null,"Abrechnung Verpflegungspauschale"]
[]
[null,"Land","Anzahl\nTage",null,"Pauschale\nfür 24 Std.",null,"Pauschale für An- und Abreisetag",null,"Pauschale\ngesamt",null,"Kürzung\nder Pauschale",null,"Saldo/\nAuszahlung"]
[]
[null,{"$f":"\"Anreisetag / \"&VLOOKUP($E$21,Auslandsreisepauschalen!$A$7:$G$241,2)","v":"Anreisetag /  "},1,null,{"$f":"VLOOKUP(E21,Auslandsreisepauschalen!$A$7:$G$241,4)","v":0},null,{"$f":"VLOOKUP(E21,Auslandsreisepauschalen!$A$7:$G$241,5)","v":0},null,{"$f":"C41*G41","v":0},null,{"$f":"IF(R23+R21>I41,I41,R23+R21)","v":0},null,{"$f":"+I41-K41","v":0}]
[null,{"$f":"VLOOKUP($E$21,Auslandsreisepauschalen!$A$7:$G$241,2)","v":" "}]
[null,{"$f":"VLOOKUP(A25,Auslandsreisepauschalen!$A$6:$G$244,2)","v":" "},{"$f":"+D25","v":0},null,{"$f":"VLOOKUP(A25,Auslandsreisepauschalen!$A$7:$G$241,4)","v":0},null,{"$f":"VLOOKUP(A25,Auslandsreisepauschalen!$A$7:$G$241,5)","v":0},null,{"$f":"C43*E43","v":0},null,{"$f":"+R25+S25","v":0},null,{"$f":"+I43-K43","v":0}]
[]
[null,{"$f":"VLOOKUP(A27,Auslandsreisepauschalen!$A$6:$G$244,2)","v":" "},{"$f":"+D27","v":0},null,{"$f":"VLOOKUP(A27,Auslandsreisepauschalen!$A$7:$G$241,4)","v":0},null,{"$f":"VLOOKUP(A27,Auslandsreisepauschalen!$A$7:$G$241,5)","v":0},null,{"$f":"C45*E45","v":0},null,{"$f":"+R27+S27","v":0},null,{"$f":"+I45-K45","v":0}]
[]
[null,{"$f":"VLOOKUP(A29,Auslandsreisepauschalen!$A$6:$G$244,2)","v":" "},{"$f":"+D29","v":0},null,{"$f":"VLOOKUP(A29,Auslandsreisepauschalen!$A$7:$G$241,4)","v":0},null,{"$f":"VLOOKUP(A29,Auslandsreisepauschalen!$A$7:$G$241,5)","v":0},null,{"$f":"C47*E47","v":0},null,{"$f":"+R29","v":0},null,{"$f":"+I47-K47","v":0}]
[]
[null,{"$f":"VLOOKUP(A31,Auslandsreisepauschalen!$A$6:$G$244,2)","v":" "},{"$f":"+D31","v":0},null,{"$f":"IF(C49=0,0,VLOOKUP(A31,Auslandsreisepauschalen!$A$7:$G$241,4))","v":0},null,{"$f":"VLOOKUP(A31,Auslandsreisepauschalen!$A$7:$G$241,5)","v":0},null,{"$f":"C49*E49","v":0},null,{"$f":"+R31","v":0},null,{"$f":"+I49-K49","v":0}]
[]
[null,{"$f":"\"Abreisetag / \"&VLOOKUP($E$33,Auslandsreisepauschalen!$A$7:$G$241,2)","v":"Abreisetag / "},1,null,{"$f":"VLOOKUP($E$33,Auslandsreisepauschalen!$A$7:$G$241,4)","v":0},null,{"$f":"VLOOKUP(E33,Auslandsreisepauschalen!$A$7:$G$241,5)","v":0},null,{"$f":"C51*G51","v":0},null,{"$f":"IF(I51>R33,R33,I51)","v":0},null,{"$f":"+I51-K51","v":0}]
[]
[null,"Gesamt",{"$nulls":6},{"$f":"SUM(I41:I51)","v":0},null,{"$f":"SUM(K41:K51)","v":0},null,{"$f":"SUM(M41:M51)","v":0}]
{"$rows_empty":934}
[{"$nulls":14},55]
[]
[{"$nulls":14},57]
[]
[{"$nulls":14},58]
[]
[{"$nulls":14},57]
[]
[{"$nulls":14},59]

{"sheet":"Übernachtung","index":6,"n_rows":26,"n_cols":12,"rows_kept":26,"merged":[[5,1,5,8],[6,3,6,5],[7,3,7,5],[8,3,8,5],[9,3,9,5],[10,3,10,5],[11,3,11,5]]}
[]
[null,"Reisekostenabrechnung - Inland"]
[]
[null,"Übernachtung "]
[]
[null,"Kosten für die Unterkunft",{"$nulls":9},"Zusatzinformationen"]
[null,"Übernachtung (Hotel, Gasthof, Pension u. Ä.)",null,"Anzahl der Übernachtungen",{"$nulls":3},"Betrag"]
[{"$nulls":9},{"$f":"D8*H8","v":0}]
[{"$nulls":9},{"$f":"D9*H9","v":0}]
[{"$nulls":9},{"$f":"D10*H10","v":0}]
[{"$nulls":9},{"$f":"D11*H11","v":0}]
[{"$nulls":9},{"$f":"D12*H12","v":0}]
[]
[]
[{"$nulls":7},"Gesamt",null,{"$f":"SUM(J8:J14)","v":{"v":0,"d":"0.00 €"}}]
[]
[]
[{"$nulls":3},{"$f":"IF(PersönlicheEingaben_Pauschalen!$L$26=TRUE,\"Pauschale für Berufskraftfahrer\",\"Übernachtungspauschale\")","v":"Übernachtungspauschale"},{"$nulls":3},"Anzahl"]
[]
[{"$f":"Verpflegung_Wechsel!E21","v":1},null,null,{"$f":"IF(PersönlicheEingaben_Pauschalen!L26=TRUE,8,20)","v":{"v":20,"d":"20.00 €"}},{"$f":"IF(PersönlicheEingaben_Pauschalen!L26=TRUE,8,0)","v":0},{"$nulls":4},{"$f":"H20*D20","v":{"v":0,"d":"0.00 €"}}]
[{"$f":"Verpflegung_Wechsel!A25","v":1},{"$f":"IF(Reisedaten!$N$23=TRUE,Verpflegung_Wechsel!B43,\"\")","v":""},null,{"$f":"IF(Reisedaten!$N$23=FALSE,0,VLOOKUP(A21,Auslandsreisepauschalen!$A$7:$G$242,7))","v":0},{"$nulls":5},{"$f":"H21*D21","v":{"v":0,"d":"0.00 €"}}]
[{"$f":"Verpflegung_Wechsel!A27","v":1},{"$f":"IF(Reisedaten!$N$23=TRUE,Verpflegung_Wechsel!B45,\"\")","v":""},null,{"$f":"IF(Reisedaten!$N$23=FALSE,0,VLOOKUP(A22,Auslandsreisepauschalen!$A$7:$G$242,7))","v":0},{"$nulls":5},{"$f":"H22*D22","v":{"v":0,"d":"0.00 €"}}]
[{"$f":"Verpflegung_Wechsel!A29","v":1},{"$f":"IF(Reisedaten!$N$23=TRUE,Verpflegung_Wechsel!B47,\"\")","v":""},null,{"$f":"IF(Reisedaten!$N$23=FALSE,0,VLOOKUP(A23,Auslandsreisepauschalen!$A$7:$G$242,7))","v":0},{"$nulls":5},{"$f":"H23*D23","v":{"v":0,"d":"0.00 €"}}]
[{"$f":"Verpflegung_Wechsel!A31","v":1},{"$f":"IF(Reisedaten!$N$23=TRUE,Verpflegung_Wechsel!B49,\"\")","v":""},null,{"$f":"IF(Reisedaten!$N$23=FALSE,0,VLOOKUP(A24,Auslandsreisepauschalen!$A$7:$G$242,7))","v":0},{"$nulls":5},{"$f":"H24*D24","v":{"v":0,"d":"0.00 €"}}]
[]
[{"$nulls":7},"Gesamt",null,{"$f":"SUM(J20:J25)","v":{"v":0,"d":"0.00 €"}}]

{"sheet":"Reisenebenkosten","index":7,"n_rows":31,"n_cols":5,"rows_kept":31}
[]
[null,"Reisenebenkosten"]
[]
[null,"Beleg-\nDatum:","Beleg-Nr.:","Aufstellung Nebenkosten","Betrag"]
{"$rows_empty":26}
[{"$nulls":3},"Summe Reisenebenkosten",{"$f":"SUM(E6:E30)","v":0}]

{"sheet":"Reisekostenabrechnung","index":8,"n_rows":73,"n_cols":9,"rows_kept":73,"merged":[[5,3,5,4],[5,5,5,7],[8,3,8,6],[10,3,10,6],[11,3,11,6],[12,3,12,6],[13,3,13,6],[14,3,14,6],[47,3,47,4],[73,4,73,7]]}
[]
[null,"Reisekostenabrechnung"]
[]
[null,{"$f":"PersönlicheEingaben_Pauschalen!$C$6","v":0},null,"Reisekostenabrechnung"]
[]
[null,{"$f":"\"Personal-Nr.: \"&PersönlicheEingaben_Pauschalen!$C$10","v":"Personal-Nr.: "},null,{"$f":"\"Abt.: \"&PersönlicheEingaben_Pauschalen!$C$12","v":"Abt.: "},null,{"$f":"\"Kostenstelle: \"&PersönlicheEingaben_Pauschalen!$C$14","v":"Kostenstelle: "}]
[null,{"$f":"PersönlicheEingaben_Pauschalen!C8","v":0}]
[null,{"$f":"PersönlicheEingaben_Pauschalen!C16","v":0},null,{"$f":"PersönlicheEingaben_Pauschalen!C18","v":0}]
[null,{"$f":"\"IBAN: \"&PersönlicheEingaben_Pauschalen!$C$20","v":"IBAN: "},null,{"$f":"\"BIC: \"&PersönlicheEingaben_Pauschalen!C22","v":"BIC: "}]
[]
[null,"Reiseziel u. -zweck",null,{"$f":"Reisedaten!B42&\"; \"&Reisedaten!C8&\"; \"&Reisedaten!C10","v":"Deutschland; ; "}]
[null,"Reiseroute",null,{"$f":"Reisedaten!C12","v":0}]
[{"$nulls":3},{"$f":"Reisedaten!C14","v":0}]
[{"$nulls":3},{"$f":"Reisedaten!C16","v":0}]
[{"$nulls":3},{"$f":"Reisedaten!C18","v":0}]
[{"$nulls":3},{"$f":"Reisedaten!C20","v":0}]
[]
[{"$nulls":3},"Datum","Uhrzeit"]
[null,"Reisebeginn",null,{"$f":"Reisedaten!C24","v":"00:00:00"},{"$f":"Reisedaten!C26","v":"00:00:00"}]
[null,"Reiseende",null,{"$f":"Reisedaten!C28","v":"00:00:00"},{"$f":"Reisedaten!C30","v":"00:00:00"}]
[]
[null,{"$f":"IF(Reisedaten!O8=1,\"Reisedauer eintägige Reise\",\"Reisedauer mehrtägige Reise\")","v":"Reisedauer eintägige Reise"},null,{"$f":"IF(Reisedaten!$O$8=1,\"\",Reisedaten!$O$8&\" Tage\")","v":""},{"$f":"Reisedaten!O10","v":0}]
[]
[]
[null,"Pauschbeträge für Verpflegungsmehraufwand (nach Kürzung)",{"$nulls":6},{"$f":"I56","v":0}]
[]
[]
[]
[null,"Fahrtkosten laut Einzelnachweis",{"$nulls":6},{"$f":"SUM(F30:F35)","v":0}]
[null,"Bahnfahrkarte/n",{"$nulls":3},{"$f":"Fahrtkosten!J27","v":{"v":0,"d":"0.00 €"}}]
[null,"Nahverkehr",{"$nulls":3},{"$f":"Fahrtkosten!L28","v":{"v":0,"d":"0.00 €"}}]
[null,"Taxi",{"$nulls":3},{"$f":"Fahrtkosten!L29","v":{"v":0,"d":"0.00 €"}}]
[null,"Flugticket/s",{"$nulls":3},{"$f":"Fahrtkosten!L30","v":{"v":0,"d":"0.00 €"}}]
[null,"Kfz-Kosten",{"$nulls":3},{"$f":"Fahrtkosten!L31","v":{"v":0,"d":"0.00 €"}}]
[null,"Sonstiges",{"$nulls":3},{"$f":"Fahrtkosten!L32","v":{"v":0,"d":"0.00 €"}}]
[]
[null,"Fahrtkosten für privat genutzte Fahrzeuge",{"$nulls":6},{"$f":"SUM(F40:F45)","v":0}]
[]
[null,{"$f":"IF($I$37=0,\"\",\"Strecke/Route\")","v":""},null,null,{"$f":"IF($I$37=0,\"\",\"km \")","v":""},{"$f":"IF($I$37=0,\"\",\"     Betrag\")","v":""}]
[null,{"$f":"Reisedaten!C12","v":0},null,null,{"$f":"Fahrtkosten!H38","v":0},{"$f":"Fahrtkosten!$J$38","v":{"v":0,"d":"0.00 €"}}]
[null,{"$f":"Reisedaten!C14","v":0},null,null,{"$f":"Fahrtkosten!H39","v":0},{"$f":"Fahrtkosten!$J$39","v":{"v":0,"d":"0.00 €"}}]
[null,{"$f":"Reisedaten!C16","v":0},null,null,{"$f":"Fahrtkosten!H40","v":0},{"$f":"Fahrtkosten!J40","v":{"v":0,"d":"0.00 €"}}]
[null,{"$f":"Reisedaten!C18","v":0},null,null,{"$f":"Fahrtkosten!H41","v":0},{"$f":"Fahrtkosten!J41","v":{"v":0,"d":"0.00 €"}}]
[null,{"$f":"Fahrtkosten!B42","v":0},null,null,{"$f":"Fahrtkosten!H42","v":0},{"$f":"Fahrtkosten!J42","v":{"v":0,"d":"0.00 €"}}]
[null,{"$f":"Fahrtkosten!D44&\" Mitfahrer\"","v":" Mitfahrer"},null,null,{"$f":"Fahrtkosten!H44","v":0},{"$f":"Fahrtkosten!J44","v":{"v":0,"d":"0.00 €"}}]
[]
[null,"Kosten für die Unterkunft",{"$nulls":6},{"$f":"SUM(H49:H54)","v":0}]
[null,{"$f":"IF(I47=0,\"\",\"Übernachtungskosten gem. Nachweis\")","v":""},null,{"$f":"IF(I47=0,\"\",\"Anzahl der Übernachtungen\")","v":""},null,{"$f":"IF($I$47=0,\"\",\"Einzelbetrag\")","v":""},{"$f":"IF(J47=0,\"\",\"Einzelbetrag\")","v":""},{"$f":"IF($I$47=0,\"\",\"Gesamtbetrag\")","v":""}]
[null,{"$f":"Übernachtung!B8","v":0},null,{"$f":"Übernachtung!D8","v":0},null,{"$f":"Übernachtung!H8","v":{"v":0,"d":"0.00 €"}},null,{"$f":"Übernachtung!J8","v":{"v":0,"d":"0.00 €"}}]
[null,{"$f":"Übernachtung!B9","v":0},null,{"$f":"Übernachtung!D9","v":0},null,{"$f":"Übernachtung!H9","v":{"v":0,"d":"0.00 €"}},null,{"$f":"Übernachtung!J9","v":{"v":0,"d":"0.00 €"}}]
[null,{"$f":"Übernachtung!B10","v":0},null,{"$f":"Übernachtung!D10","v":0},null,{"$f":"Übernachtung!H10","v":{"v":0,"d":"0.00 €"}},null,{"$f":"Übernachtung!J10","v":{"v":0,"d":"0.00 €"}}]
[null,{"$f":"Übernachtung!B11","v":0},null,{"$f":"Übernachtung!D11","v":0},null,{"$f":"Übernachtung!H11","v":{"v":0,"d":"0.00 €"}},null,{"$f":"Übernachtung!J11","v":{"v":0,"d":"0.00 €"}}]
[null,{"$f":"Übernachtung!B12","v":0},null,{"$f":"Übernachtung!D12","v":0},null,{"$f":"Übernachtung!H12","v":{"v":0,"d":"0.00 €"}},null,{"$f":"Übernachtung!J12","v":{"v":0,"d":"0.00 €"}}]
[null,"Erstattung für Pauschalübernachtungen",{"$nulls":3},{"$f":"Übernachtung!J18","v":0},null,{"$f":"Übernachtung!J26","v":{"v":0,"d":"0.00 €"}}]
[]
[null,"Pauschbeträge für Verpflegungsmehraufwand (nach Kürzung)",{"$nulls":6},{"$f":"IF(Reisedaten!N23=TRUE,Verpflegung_Wechsel!M53,Verpflegung!J31)","v":0}]
[null,"Reisedauer bei eintägiger Reise in Stunden",null,{"$f":"Übernachtung!#REF!","v":{"$error":"#REF!"}},null,{"$f":"Übernachtung!#REF!","v":{"$error":"#REF!"}}]
[null,"Reisedauer bei mehrtägigen Reisen in Tagen",null,{"$f":"Übernachtung!#REF!","v":{"$error":"#REF!"}},null,{"$f":"Übernachtung!#REF!","v":{"$error":"#REF!"}}]
[null,"Kürzung der Verpflegungspauschale",{"$nulls":3},{"$f":"Übernachtung!#REF!","v":{"$error":"#REF!"}}]
[]
[null,"Reisenebenkosten gem. gesonderter Anlage",{"$nulls":6},{"$f":"Reisenebenkosten!E31","v":0}]
[]
[null,"Reisekosten gesamt",{"$nulls":6},{"$f":"SUM(I29:I62)","v":0}]
[]
[null,"Abzüglich Vorschuss",{"$nulls":6},{"$f":"+Reisedaten!C32*(-1)","v":0}]
[]
[]
[null,"Auszahlungsbetrag",{"$nulls":6},{"$f":"+I63+I65","v":0}]
[]
[]
[null,"Abrechnung erstellt",null,null,"Genehmigt"]
[]
[null,"Datum, Unterschrift ",null,null,"Datum, Unterschrift "]

{"sheet":"Sonderregelungen","index":9,"n_rows":28,"n_cols":256,"rows_kept":28,"hidden":true}
[]
[null,"Sonderregelungen",{"$nulls":120},"Übernachtung ","Übernachtung ","Übernachtung ","Übernachtung ","Übernachtung ","Übernachtung ","Übernachtung ","Übernachtung ","Übernachtung ","Übernachtung ","Übernachtung ","Übernachtung ","Übernachtung ","Übernachtung ","Übernachtung ","Übernachtung ","Übernachtung ","Übernachtung ","Übernachtung ","Übernachtung ","Übernachtung ","Übernachtung ","Übernachtung ","Übernachtung ","Übernachtung ","Übernachtung ","Übernachtung ","Übernachtung ","Übernachtung ","Übernachtung ","Übernachtung ","Übernachtung ","Übernachtung ","Übernachtung ","Übernachtung ","Übernachtung ","Übernachtung ","Übernachtung ","Übernachtung ","Übernachtung ","Übernachtung ","Übernachtung ","Übernachtung ","Übernachtung ","Übernachtung ","Übernachtung ","Übernachtung ","Übernachtung ","Übernachtung ","Übernachtung ","Übernachtung ","Übernachtung ","Übernachtung ","Übernachtung ","Übernachtung ","Übernachtung ","Übernachtung ","Übernachtung ","Übernachtung ","Übernachtung ","Übernachtung ","Übernachtung ","Übernachtung ","Übernachtung ","Übernachtung ","Übernachtung ","Übernachtung ","Übernachtung ","Übernachtung ","Übernachtung ","Übernachtung ","Übernachtung ","Übernachtung ","Übernachtung ","Übernachtung ","Übernachtung ","Übernachtung ","Übernachtung ","Übernachtung ","Übernachtung ","Übernachtung ","Übernachtung ","Übernachtung ","Übernachtung ","Übernachtung ","Übernachtung ","Übernachtung ","Übernachtung ","Übernachtung ","Übernachtung ","Übernachtung ","Übernachtung ","Übernachtung ","Übernachtung ","Übernachtung ","Übernachtung ","Übernachtung ","Übernachtung ","Übernachtung ","Übernachtung ","Übernachtung ","Übernachtung ","Übernachtung ","Übernachtung ","Übernachtung ","Übernachtung ","Übernachtung ","Übernachtung ","Übernachtung ","Übernachtung ","Übernachtung ","Übernachtung ","Übernachtung ","Übernachtung ","Übernachtung ","Übernachtung ","Übernachtung ","Übernachtung ","Übernachtung ","Übernachtung ","Übernachtung ","Übernachtung ","Übernachtung ","Übernachtung ","Übernachtung ","Übernachtung ","Übernachtung ","Übernachtung ","Übernachtung ","Übernachtung ","Übernachtung ","Übernachtung ","Übernachtung ","Übernachtung "]
[]
[]
[]
[null,"Für folgende Länder gelten je nach Einsatzort unterschiedliche Verpflegungs- und Übernachtungspauschalen."]
[null,"In diesen Fällen müssen Sie ggf. eine Stadt angeben. Ansonsten wählen Sie das Land mit dem Zusatz \"Übrige\" aus."]
[]
[null,"Australien"]
[null,"Brasilien"]
[null,"China"]
[null,"Frankreich"]
[null,"Griechenland"]
[null,"Indien"]
[null,"Italien"]
[null,"Japan"]
[null,"Kanada"]
[null,"Pakistan"]
[null,"Polen"]
[null,"Rumänien"]
[null,"Russische Föderation"]
[null,"Saudi-Arabien"]
[null,"Schweiz"]
[null,"Spanien"]
[null,"Südafrika"]
[null,"Türkei"]
[null,"Vereinigte Staaten von Amerika"]
[null,"Verein.  Königreich von GB u. Nordirland"]

{"sheet":"Auslandsreisepauschalen","index":10,"n_rows":343,"n_cols":7,"rows_kept":343,"hidden":true,"merged":[[3,1,5,1],[3,2,4,2],[3,3,3,5],[3,6,4,6]]}
[]
[null,"Angaben zur Reise"]
[]
[{"$f":"+A4A4:A50","v":{"$error":"#NAME?"}},"Land","Ausgangs-wert nach BRKG","Pauschbeträge für Verpflegungsmehr-\naufwendungen bei einer Abwesenheitsdauer je Kalendertag von ",null,null,"Pauschbetrag für Übernach-\ntungskosten "]
[{"$nulls":3},"mindestens 24 Stunden ","weniger als 24 Stunden, aber mehr als 8 Stunden","An- und Abreisetage   "]
[null,null,"€","EUR","EUR","EUR","EUR"]
[1," ",null,0,0,0,0]
[2,"Deutschland",25,28,14,{"$f":"E8","v":14},20]
[3,"Afghanistan",25,30,20,{"$f":"E9","v":20},95]
[4,"Ägypten",33,41,28,28,125]
[5,"Äthiopien",25,39,26,26,130]
[6,"Äquatorialguinea",41,36,24,24,166]
[7,"Albanien",19,29,20,20,113]
[8,"Algerien",32,51,34,34,173]
[9,"Andorra",26,34,23,23,45]
[10,"Angola",64,52,35,35,299]
[11,"Argentinien",30,35,24,24,113]
[12,"Armenien",20,24,16,16,59]
[13,"Aserbaidschan",33,30,20,20,72]
[14,"Australien / Canberra",48,51,34,34,158]
[15,"Australien /  Sydney",49,68,45,45,184]
[16,"Australien / im Übrigen",46,51,34,34,158]
[17,"Bahrain",30,45,30,30,180]
[18,"Bangladesch",25,50,33,33,165]
[19,"Barbados",48,52,35,35,165]
[20,"Belgien",34,42,28,28,135]
[21,"Benin",34,52,35,35,115]
[22,"Bolivien",20,30,20,20,93]
[23,"Bosnien und Herzegowina",20,23,16,16,75]
[24,"Botsuana",27,40,27,27,102]
[25,"Brasilien / Brasilia",44,57,38,38,127]
[26,"Brasilien / Rio de Janeiro",39,57,38,38,145]
[27,"Brasilien / Sao Paulo",44,53,36,36,132]
[28,"Brasilien / im Übrigen",45,51,34,34,84]
[29,"Brunei",30,52,35,35,106]
[30,"Bulgarien",18,22,15,15,115]
[31,"Burkina Faso",30,38,25,25,174]
[32,"Burundi",39,47,32,32,98]
[33,"Chile",33,44,29,29,187]
[34,"China / Chengdu",26,35,24,24,105]
[35,"China / Hongkong",51,74,49,49,145]
[36,"China / Kanton",32,40,27,27,113]
[37,"China /  Peking",35,46,31,31,142]
[38,"China /  Shanghai",27,50,33,33,128]
[39,"China /  im Übrigen",30,50,33,33,78]
[40,"Costa Rica",45,47,32,32,93]
[41,"Côte d’Ivoire",50,51,34,34,146]
[42,"Dänemark",33,58,39,39,143]
[43,"Dominikanische Republik",40,45,30,30,147]
[44,"Dschibuti",32,65,44,44,305]
[45,"Ecuador",38,44,29,29,97]
[46,"El Salvador",25,44,29,29,119]
[47,"Eritrea",22,50,33,33,91]
[48,"Estland",26,29,20,20,85]
[49,"Fidschi",32,34,23,23,69]
[50,"Finnland",44,50,33,33,136]
[51,"Frankreich / Lyon",42,53,36,36,115]
[52,"Frankreich / Marseille",48,46,31,31,101]
[53,"Frankreich / Paris",null,58,39,39,152]
[54,"Frankreich / Departments 92, 93, 94",null,58,39,39,152]
[55,"Frankreich /  Straßburg",null,51,34,34,96]
[56,"Frankreich /  im Übrigen",40,44,29,29,115]
[57,"Gabun",36,52,35,35,183]
[58,"Gambia",50,30,20,20,125]
[59,"Georgien",15,35,24,24,88]
[60,"Ghana",25,46,31,31,148]
[61,"Griechenland / Athen",42,46,31,31,132]
[62,"Griechenland / im Übrigen",47,36,24,24,135]
[63,"Guatemala",35,34,23,23,90]
[64,"Guinea",23,46,31,{"$f":"E70","v":31},118]
[65,"Guinea-Bissau",31,24,16,16,86]
[66,"Haiti",34,58,39,39,130]
[67,"Honduras",41,48,32,32,101]
[68,"Indien / Bangalore",null,42,28,28,155]
[69,"Indien / Chennai",36,32,21,21,85]
[70,"Indien / Kalkutta",25,35,24,24,145]
[71,"Indien / Mumbai",27,50,33,33,146]
[72,"Indien / Neu Delhi",29,38,25,25,185]
[73,"Indien /   im Übrigen",29,32,21,21,85]
[74,"Indonesien",25,36,24,24,134]
[75,"Iran",31,33,22,22,196]
[76,"Irland",23,44,29,29,92]
[77,"Island",35,47,32,32,108]
[78,"Israel",39,66,44,44,190]
[79,"Italien / Mailand",49,45,30,30,158]
[80,"Italien / Rom",32,40,27,27,135]
[81,"Italien /  im Übrigen",43,40,27,27,135]
[82,"Jamaika",28,57,38,38,138]
[83,"Japan / Tokio",45,66,44,44,233]
[84,"Japan /  im Übrigen",44,52,35,35,190]
[85,"Jemen",42,24,16,16,95]
[86,"Jordanien",20,46,31,31,126]
[87,"Kambodscha",30,38,25,25,94]
[88,"Kamerun",30,50,33,33,180]
[89,"Kanada / Ottawa",33,47,32,32,142]
[90,"Kanada / Toronto",30,51,34,34,161]
[91,"Kanada /  Vancouver",34,50,33,33,140]
[92,"Kanada /  im Übrigen",30,47,32,32,134]
[93,"Kap Verde",30,30,20,20,105]
[94,"Kasachstan",25,45,30,30,111]
[95,"Katar",32,56,37,37,149]
[96,"Kenia",46,42,28,28,223]
[97,"Kirgisistan",29,27,18,18,74]
[98,"Kolumbien",24,46,31,31,115]
[99,"Kongo, Republik",34,50,33,33,200]
[100,"Kongo, Demokratische Republik",47,70,47,47,190]
[101,"Korea, Demokratische Volksrepublik",50,28,19,19,92]
[102,"Korea, Republik",32,58,39,39,112]
[103,"Kosovo",55,23,16,16,57]
[104,"Kroatien",21,35,24,24,107]
[105,"Kuba",23,46,31,31,228]
[106,"Kuwait",41,42,28,28,185]
[107,"Laos",35,33,22,22,96]
[108,"Lesotho",27,24,16,16,103]
[109,"Lettland",20,35,24,24,76]
[110,"Libanon",25,59,40,40,123]
[111,"Libyen",36,63,42,42,135]
[112,"Liechtenstein",37,53,36,36,180]
[113,"Litauen",39,26,17,17,109]
[114,"Luxemburg",20,47,32,32,130]
[115,"Madagaskar",39,34,23,23,87]
[116,"Malawi",31,47,32,32,123]
[117,"Malaysia",32,34,23,23,88]
[118,"Malediven",30,52,35,35,170]
[119,"Mali",31,38,25,25,120]
[120,"Malta",34,46,31,31,114]
[121,"Marokko",37,42,28,28,129]
[122,"Marshall Inseln",35,63,42,42,102]
[123,"Mauretanien",52,39,26,26,105]
[124,"Mauritius",40,54,36,36,220]
[125,"Mazedonien",40,29,20,20,95]
[126,"Mexiko",20,48,32,32,177]
[127,"Moldau, Republik",46,24,16,{"$f":"E133","v":16},88]
[128,"Monaco",15,42,28,28,180]
[129,"Mongolei",34,27,18,18,92]
[130,"Montenegro",24,29,20,20,94]
[131,"Mosambik",24,38,25,25,146]
[132,"Myanmar",35,35,24,24,155]
[133,"Namibia",38,30,20,20,112]
[134,"Nepal",19,28,19,19,86]
[135,"Neuseeland",23,56,37,37,153]
[136,"Nicaragua",39,36,24,24,81]
[137,"Niederlande",25,47,32,32,122]
[138,"Niger",38,41,28,28,89]
[139,"Nigeria",30,46,31,31,182]
[140,"Norwegen",52,80,53,53,182]
[141,"Österreich",53,40,27,27,108]
[142,"Oman",30,60,40,40,200]
[143,"Pakistan / Islamabad",40,23,16,16,238]
[144,"Pakistan / im Übrigen",25,34,23,23,122]
[145,"Palau",22,51,34,34,179]
[146,"Panama",42,39,26,26,111]
[147,"Papua-Neuguinea",28,60,40,40,234]
[148,"Paraguay",30,38,25,25,108]
[149,"Peru",30,34,23,23,143]
[150,"Philippinen",25,33,22,22,116]
[151,"Polen / Breslau",25,33,22,22,117]
[152,"Polen / Danzig",27,30,20,20,84]
[153,"Polen / Krakau",24,27,18,18,86]
[154,"Polen /  Warschau",23,29,20,20,109]
[155,"Polen /   im Übrigen",25,29,20,20,60]
[156,"Portugal",22,36,24,24,102]
[157,"Ruanda",30,46,31,31,141]
[158,"Rumänien/Bukarest",21,32,21,21,100]
[159,"Rumänien/im Übrigen",22,26,17,17,62]
[160,"Russ. Föderation/Jekatarinenburg",20,28,19,19,84]
[161,"Russ. Föderation/Moskau",17,30,20,20,110]
[162,"Russ. Föderation/St. Petersburg",30,26,17,17,114]
[163,"Russ. Föderation/im Übrigen",24,24,16,16,58]
[164,"Sambia",35,36,24,24,130]
[165,"Samoa",34,29,20,20,85]
[166,"San Marino",40,34,23,23,75]
[167,"São Tomé – Príncipe",40,47,32,32,80]
[168,"Saudi Arabien / Djidda",39,38,25,25,234]
[169,"Saudi Arabien / Riad",60,48,32,32,179]
[170,"Saudi Arabien / im Übrigen",51,48,32,32,80]
[171,"Schweden",40,50,33,33,168]
[172,"Schweiz / Genf",39,64,43,43,195]
[173,"Schweiz / im Übrigen",25,62,41,41,169]
[174,"Senegal",32,45,30,30,128]
[175,"Serbien",37,20,13,13,74]
[176,"Sierra Leone",44,48,32,32,161]
[177,"Simbabwe",20,45,30,30,140]
[178,"Singapur",25,54,36,36,197]
[179,"Slowakische Republik",26,24,16,16,85]
[180,"Slowenien",26,33,22,22,95]
[181,"Spanien / Barcelona",34,34,23,23,118]
[182,"Spanien / Kanarische Inseln",26,40,27,27,115]
[183,"Spanien / Madrid",24,40,27,27,118]
[184,"Spanien / Palma de Mallorca",33,35,24,24,121]
[185,"Spanien /  im Übrigen",37,34,23,23,115]
[186,"Sri Lanka",45,42,28,28,100]
[187,"Sudan",null,33,22,22,195]
[188,"Südafrika / Kapstadt",30,27,18,{"$f":"E194","v":18},112]
[189,"Südafrika / Johannisburg",44,29,20,20,124]
[190,"Südafrika / im Übrigen",25,22,15,15,94]
[191,"Südsudan",31,34,23,23,150]
[192,"Syrien",32,38,25,25,140]
[193,"Tadschikistan",33,27,18,18,118]
[194,"Taiwan",26,46,31,31,143]
[195,"Tansania",29,47,32,32,201]
[196,"Thailand",26,38,25,25,110]
[197,"Togo",45,39,26,26,118]
[198,"Tonga",39,39,26,26,94]
[199,"Trinidad und Tobago",20,45,30,30,177]
[200,"Tschad",29,64,43,43,163]
[201,"Tschechische Republik",35,35,24,24,94]
[202,"Türkei / Istanbul",33,26,17,17,120]
[203,"Türkei / Izmir",27,29,20,20,55]
[204,"Türkei / im Übrigen",27,17,12,12,95]
[205,"Tunesien",29,40,27,27,115]
[206,"Turkmenistan",30,33,22,22,108]
[207,"Uganda",25,41,28,28,143]
[208,"Ukraine",36,26,17,17,98]
[209,"Ungarn",28,22,15,15,63]
[210,"Uruguay",43,48,32,32,90]
[211,"Usbekistan",40,34,23,23,104]
[212,"Vatikanstaat",37,52,35,35,160]
[213,"Venezuela",47,45,30,30,127]
[214,"Vereinigte Arabische Emirate",40,65,44,44,156]
[215,"USA/Atlanta",40,62,41,41,175]
[216,"USA/Boston",47,58,39,39,265]
[217,"USA/Chicago",40,54,36,36,209]
[218,"USA/Houston",47,63,42,42,138]
[219,"USA/Los Angeles",40,56,37,37,274]
[220,"USA/Miami",40,64,43,43,151]
[221,"USA/New York City",47,58,39,39,282]
[222,"USA/San Francisco",40,51,34,34,314]
[223,"USA/Washington, D. C.",47,62,41,41,276]
[224,"USA/ im Übrigen",35,51,34,34,138]
[225,"GB/London",31,62,41,41,224]
[226,"GB/im Übrigen",22,45,30,30,115]
[227,"Vietnam",null,41,28,28,86]
[228,"Weißrussland",null,20,13,13,98]
[229,"Zentralafrikanische Republik",null,46,31,31,74]
[230,"Zypern",24,45,30,30,116]
[231]
[232]
[233]
[235]
[263]
[264]
[265]
{"$rows_empty":83}
[{"$nulls":3},{"$f":"ROUNDUP(C327*120%,0)","v":0}]
[{"$nulls":3},0]
[{"$nulls":3},0]
[{"$nulls":3},0]
[{"$nulls":3},0]
[{"$nulls":3},0]
[{"$nulls":3},0]
[{"$nulls":3},0]
[{"$nulls":3},0]
[{"$nulls":3},0]
[{"$nulls":3},0]
[{"$nulls":3},0]
[{"$nulls":3},0]
[{"$nulls":3},0]
[{"$nulls":3},0]
[{"$nulls":3},0]
[{"$nulls":3},0]